bitfinex-derivatives/quotes_SOLF0:USTF0_20241017
["timestamp","ask_amount","ask_price","bid_price","bid_amount"]
[1729173495609,15.76,152.42,152.34,5.44]
[1729173495813,3.282,152.4,152.36,3.2827]
[1729173496117,3.282,152.4,152.34,5.44]
[1729173496317,3.282,152.4,152.35,3.2828]
[1729173496618,3.282,152.4,152.36,3.33050328]
[1729173496814,21.12,152.42,152.33,1.4194]
[1729173497012,21.12,152.42,152.33,6.7794]
[1729173497216,21.12,152.42,152.33,1.4194]
[1729173497414,3.2827,152.37,152.33,4.7027]
[1729173497917,3.2828,152.36,152.33,3.2833]
[1729173498121,15.76,152.4,152.33,3.2833]
[1729173498620,3.2828,152.37,152.33,3.2833]
[1729173498821,15.76,152.4,152.33,3.2833]
[1729173500116,3.2827,152.37,152.32,1.3527]
[1729173500319,18.522,152.44,152.36,3.2827]
[1729173500515,3.2823,152.39,152.36,6.55574044]
[1729173500716,3.2823,152.39,152.36,3.2827]
[1729173501021,3.2823,152.39,152.35,3.2829]
[1729173502020,3.2823,152.39,152.35,6.49223961]
[1729173503722,3.2821,152.4,152.34,3.2831]
[1729173503925,15.76,152.4,152.34,3.2831]
[1729173504317,3.2827,152.37,152.34,3.2831]
[1729173507423,15.76,152.4,152.3,15.76]
[1729173507720,3.283,152.36,152.33,3.2833]
[1729173508123,15.76,152.4,152.3,21.12]
[1729173508628,5.36,152.41,152.3,21.12]
[1729173508629,15.76,152.38,152.3,5.36]
[1729173509326,3.2829,152.36,152.32,3.2835]
[1729173509719,3.2829,152.36,152.3,5.36]
[1729173509923,3.2829,152.36,152.33,3.2834]
[1729173511130,3.2827,152.37,152.34,3.283]
[1729173511731,3.2827,152.37,152.34,3.2832]
[1729173511933,3.2828,152.36,152.34,3.2832]
[1729173514731,15.76,152.35,152.27,3.29624167]
[1729173514925,15.76,152.35,152.26,15.76]
[1729173515131,15.76,152.35,152.26,19.11327094]
[1729173515833,3.2835,152.33,152.3,3.284]
[1729173518033,15.76,152.36,152.28,15.76]
[1729173518236,5.36,152.38,152.32,15.76]
[1729173518446,5.36,152.4,152.32,15.76]
[1729173518638,3.2824,152.38,152.35,3.2829]
[1729173518940,3.2824,152.38,152.35,6.58264208]
[1729173519142,3.2824,152.38,152.35,3.2829]
[1729173519334,3.2826,152.37,152.35,3.2829]
[1729173520841,21.12,152.41,152.35,3.2829]
[1729173521044,3.2825,152.38,152.35,3.2829]
[1729173521249,21.12,152.41,152.32,4.2293]
[1729173521250,15.76,152.39,152.32,4.2293]
[1729173521437,3.283,152.36,152.32,4.2293]
[1729173521640,5.36,152.37,152.32,4.2293]
[1729173521940,5.36,152.37,152.33,3.2834]
[1729173522131,5.36,152.37,152.3,15.76]
[1729173522334,5.36,152.37,152.31,3.2837]
[1729173522748,3.2831,152.35,152.31,3.24600009]
[1729173522938,3.2831,152.35,152.32,3.2836]
[1729173523138,5.36,152.37,152.3,15.76]
[1729173524042,3.2828,152.36,152.33,3.2833]
[1729173529641,5.36,152.37,152.28,8.60402984]
[1729173529847,3.2834,152.34,152.31,3.2839]
[1729173531753,3.2835,152.33,152.31,3.2839]
[1729173532745,3.2838,152.32,152.29,3.2842]
[1729173536159,3.2838,152.32,152.28,3.24402984]
[1729173536360,3.2838,152.32,152.3,3.284]
[1729173536558,3.2838,152.32,152.3,6.48806027]
[1729173537054,3.2838,152.32,152.3,3.20406027]
[1729173537358,15.76,152.36,152.27,25.2842]
[1729173537563,3.2841,152.31,152.27,20.0242]
[1729173537855,15.76,152.34,152.28,3.2845]
[1729173538049,3.284,152.31,152.28,3.2845]
[1729173540362,3.2844,152.29,152.27,6.22515329]
[1729173540552,5.26,152.33,152.27,4.79995329]
[1729173540962,5.26,152.33,152.27,8.08455329]
[1729173540963,3.2843,152.3,152.27,8.08455329]
[1729173541664,3.2839,152.31,152.28,3.2844]
[1729173542059,5.26,152.33,152.28,3.2844]
[1729173542253,3.2841,152.31,152.28,3.2844]
[1729173542557,5.26,152.33,152.28,3.2844]
[1729173543561,3.2842,152.3,152.28,3.2844]
[1729173543958,3.2843,152.29,152.27,6.62735329]
[1729173544265,3.2843,152.29,152.22,2.7877]
[1729173544266,21.02,152.28,152.22,4.2137]
[1729173544455,3.2853,152.25,152.22,7.4994]
[1729173544658,3.2853,152.25,152.18,114.80698504]
[1729173544659,15.76,152.26,152.18,110.88788504]
[1729173545166,3.2859,152.22,152.19,3.2863]
[1729173545972,3.2862,152.21,152.18,4.6275]
[1729173546163,5.26,152.24,152.16,2.7673]
[1729173546363,5.26,152.24,152.15,3.21480434]
[1729173546364,3.2868,152.18,152.15,3.21480434]
[1729173546563,3.2868,152.18,152.13,1.3409]
[1729173546869,3.2868,152.18,152.13,4.69735998]
[1729173547174,5.26,152.21,152.18,3.2865]
[1729173547666,5.26,152.21,152.18,6.53123134]
[1729173548465,8.566,152.22,152.19,3.2865]
[1729173549562,8.566,152.22,152.18,3.24473134]
[1729173549869,3.2861,152.21,152.16,15.76]
[1729173550066,3.2861,152.21,152.13,1.3409]
[1729173550067,15.76,152.2,152.13,1.3409]
[1729173550268,15.76,152.18,152.13,7.85786155]
[1729173550471,3.287,152.17,152.13,3.2876]
[1729173550670,21.04,152.18,152.13,3.2876]
[1729173550870,21.04,152.18,152.12,1.3413]
[1729173550871,15.76,152.16,152.12,1.3413]
[1729173551172,15.76,152.16,152.13,3.31394589]
[1729173552277,15.76,152.19,152.12,1.3413]
[1729173552469,21.04,152.19,152.13,3.28928366]
[1729173552666,21.04,152.19,152.12,1.3413]
[1729173552861,3.2869,152.17,152.13,3.2877]
[1729173553066,21.04,152.19,152.13,6.60230355]
[1729173553370,21.04,152.19,152.12,1.3413]
[1729173553670,3.2871,152.17,152.14,3.2874]
[1729173554068,21.04,152.19,152.13,3.21957176]
[1729173554572,3.2869,152.18,152.13,6.50727176]
[1729173554769,21.04,152.19,152.13,6.50727176]
[1729173555172,3.2869,152.18,152.13,6.50727176]
[1729173555472,21.04,152.19,152.09,15.76]
[1729173555770,3.2873,152.16,152.13,3.2876]
[1729173555971,8.5673,152.16,152.13,3.2876]
[1729173556167,8.5673,152.16,152.1,1.426]
[1729173556168,8.5669,152.18,152.15,3.2873]
[1729173556969,5.28,152.18,152.1,4.74093238]
[1729173557576,3.2872,152.16,152.12,3.2879]
[1729173557770,3.2872,152.16,152.1,4.74093238]
[1729173558576,3.2872,152.16,152.13,3.2876]
[1729173559677,3.287,152.17,152.14,3.2874]
[1729173560077,15.76,152.19,152.1,4.74093238]
[1729173560278,5.28,152.18,152.1,4.74093238]
[1729173560870,3.2872,152.16,152.13,3.2876]
[1729173561074,3.2872,152.16,152.1,4.74093238]
[1729173561678,8.5668,152.18,152.1,4.74093238]
[1729173561978,5.28,152.18,152.1,4.74093238]
[1729173562188,3.2874,152.15,152.12,3.2878]
[1729173562884,19.047,152.17,152.12,3.288]
[1729173563181,15.76,152.17,152.1,4.74093238]
[1729173563584,15.76,152.17,152.1,3.31493238]
[1729173563790,15.76,152.14,152.1,3.31493238]
[1729173564079,3.2879,152.13,152.07,5.28]
[1729173564282,3.2879,152.13,152.01,22.3404]
[1729173564283,15.76,152.12,151.95,6.583]
[1729173564583,5.28,152.14,152.04,3.2895]
[1729173564584,3.289,152.08,152.04,3.2895]
[1729173564787,15.76,152.1,152.04,3.2895]
[1729173564788,5.28,152.09,152.04,3.2895]
[1729173564986,5.28,152.09,152.04,3.30835246]
[1729173565174,5.28,152.09,152.06,3.2892]
[1729173565780,5.28,152.11,152.07,3.2889]
[1729173565978,5.28,152.11,152.05,3.32874597]
[1729173566182,3.2888,152.09,152.05,3.2893]
[1729173566486,5.28,152.11,152.02,2.7913]
[1729173566487,15.76,152.1,152.02,2.7913]
[1729173566790,3.2892,152.07,152.03,3.2897]
[1729173567378,8.5692,152.07,152.03,6.51623009]
[1729173567683,3.2894,152.06,152.03,6.51623009]
[1729173568886,5.28,152.07,152.05,3.2895]
[1729173570585,5.28,152.07,152.03,3.2898]
[1729173570980,5.28,152.07,152.03,6.55832845]
[1729173571689,3.2894,152.06,152.03,6.55832845]
[1729173571889,5.28,152.07,152.04,3.2897]
[1729173572388,8.5692,152.07,152.04,3.2897]
[1729173573194,8.5689,152.08,152.03,3.26852845]
[1729173573483,8.5689,152.08,152.02,2.7913]
[1729173573890,8.5689,152.08,152.04,3.2895]
[1729173574689,5.28,152.08,152.04,3.2895]
[1729173574893,3.2891,152.07,152.04,3.2895]
[1729173575090,3.2891,152.07,152.02,6.1279365]
[1729173575290,3.2891,152.07,152.05,3.2895]
[1729173575592,5.28,152.08,152.02,6.1279365]
[1729173576182,8.5691,152.08,152.02,6.1279365]
[1729173576583,8.5691,152.08,152.05,3.2894]
[1729173577590,5.28,152.08,152.02,6.1279365]
[1729173578190,15.76,152.1,152.02,6.1279365]
[1729173578191,19.0486,152.1,152.02,6.1279365]
[1729173578399,5.28,152.1,152.02,21.8879365]
[1729173578595,5.28,152.1,152.08,3.2887]
[1729173579093,5.28,152.1,152.02,6.1279365]
[1729173579292,3.2887,152.09,152.06,3.2892]
[1729173579692,3.2887,152.09,152.02,6.1279365]
[1729173579888,3.2883,152.11,152.08,3.2887]
[1729173580084,8.5683,152.11,152.08,3.2887]
[1729173580492,5.28,152.11,152.03,15.76]
[1729173580693,3.2885,152.1,152.07,3.289]
[1729173580897,15.76,152.1,152.02,6.1279365]
[1729173581194,3.2887,152.09,152.06,3.2891]
[1729173583190,21.04,152.11,152.02,6.1279365]
[1729173583402,24.3283,152.11,152.08,3.2887]
[1729173583599,24.3283,152.11,152.02,6.1279365]
[1729173583600,21.04,152.11,152.02,6.1279365]
[1729173583999,3.2885,152.1,152.07,3.289]
[1729173585204,3.2885,152.1,152.08,3.2888]
[1729173587001,3.2885,152.1,152.07,3.2889]
[1729173588504,5.28,152.11,152.09,3.2885]
[1729173589002,8.5682,152.11,152.09,3.2885]
[1729173589705,5.28,152.11,152.1,3.2884]
[1729173589893,5.28,152.11,152.05,15.76]
[1729173590404,3.2884,152.1,152.08,3.2887]
[1729173590602,5.28,152.11,152.08,3.2887]
[1729173591600,8.5684,152.11,152.08,3.2887]
[1729173592691,15.76,152.13,152.08,3.2887]
[1729173592897,3.2884,152.1,152.08,3.2887]
[1729173593103,15.76,152.13,152.05,15.76]
[1729173593402,15.76,152.13,152.03,5.28]
[1729173593403,5.28,152.14,152.09,15.76]
[1729173593604,6.5723,152.21,152.09,15.76]
[1729173593905,74.9668,152.22,152.09,15.76]
[1729173593906,8.5671,152.17,152.09,15.76]
[1729173594200,5.28,152.17,152.1,4.1817]
[1729173594400,3.2872,152.16,152.1,4.1817]
[1729173594597,5.28,152.17,152.1,19.9417]
[1729173594796,8.5668,152.18,152.12,15.76]
[1729173594994,3.2868,152.18,152.12,15.76]
[1729173595197,5.28,152.19,152.14,15.76]
[1729173595401,8.5665,152.19,152.14,15.76]
[1729173595799,8.5665,152.19,152.16,3.287]
[1729173596805,5.28,152.19,152.17,3.2868]
[1729173597196,5.28,152.19,152.11,5.28]
[1729173597406,5.28,152.19,152.13,3.2877]
[1729173598003,3.2872,152.16,152.13,3.2877]
[1729173598204,5.28,152.19,152.14,3.2874]
[1729173598707,3.2869,152.17,152.11,15.76]
[1729173598909,3.2869,152.17,152.14,3.2874]
[1729173599813,3.2868,152.18,152.15,3.2872]
[1729173600007,3.2868,152.18,152.13,15.76]
[1729173600008,88.1286,152.22,152.13,15.76]
[1729173600411,88.1286,152.22,152.1,7.51197589]
[1729173600412,5.28,152.22,152.15,15.76]
[1729173600602,5.28,152.21,152.15,15.76]
[1729173600912,3.2866,152.19,152.16,3.2871]
[1729173601116,5.28,152.21,152.12,21.04]
[1729173601413,3.2868,152.18,152.15,3.2872]
[1729173601807,5.28,152.21,152.13,15.76]
[1729173602009,8.566,152.21,152.18,3.2865]
[1729173602211,5.28,152.21,152.13,15.76]
[1729173602823,5.28,152.21,152.14,15.76]
[1729173603211,5.28,152.21,152.12,21.04]
[1729173603409,3.2869,152.17,152.12,21.04]
[1729173603613,15.76,152.2,152.12,15.76]
[1729173603813,3.2868,152.18,152.15,3.2872]
[1729173604114,3.2868,152.18,152.12,15.76]
[1729173604924,8.566,152.21,152.14,15.76]
[1729173605110,1.4355,152.25,152.16,15.76]
[1729173605316,5.28,152.23,152.17,2.8614]
[1729173605512,3.286,152.22,152.18,3.2866]
[1729173605818,5.28,152.23,152.17,2.8614]
[1729173606124,3.2859,152.22,152.19,3.2864]
[1729173606319,5.28,152.23,152.17,2.8614]
[1729173606518,5.28,152.23,152.18,3.341023]
[1729173606819,3.2862,152.21,152.18,6.627623]
[1729173607124,5.28,152.23,152.18,3.341023]
[1729173607317,3.2859,152.22,152.17,2.8614]
[1729173607821,3.2859,152.22,152.19,3.2863]
[1729173608014,3.2859,152.22,152.19,6.64869345]
[1729173608222,3.2859,152.22,152.17,2.8614]
[1729173608723,3.2861,152.21,152.18,3.208855]
[1729173608923,5.28,152.23,152.19,3.2863]
[1729173609119,8.5656,152.23,152.17,2.8614]
[1729173609417,5.28,152.23,152.17,2.8614]
[1729173609621,5.28,152.23,152.18,3.2865]
[1729173609817,3.2858,152.22,152.18,3.29521871]
[1729173610018,3.2858,152.22,152.17,2.8614]
[1729173610512,5.28,152.23,152.17,2.8614]
[1729173610718,8.5657,152.23,152.17,2.8614]
[1729173610909,5.28,152.23,152.18,6.50939747]
[1729173611113,5.28,152.23,152.14,15.76]
[1729173611514,5.28,152.23,152.16,3.287]
[1729173611721,3.2867,152.19,152.16,3.287]
[1729173611920,3.2867,152.19,152.14,15.76]
[1729173612320,3.2868,152.18,152.13,21.04]
[1729173612722,15.76,152.22,152.13,15.76]
[1729173612925,3.2866,152.19,152.16,3.2871]
[1729173613432,3.2872,152.16,152.13,19.0476]
[1729173613729,3.2872,152.16,152.13,3.2876]
[1729173614527,5.28,152.19,152.13,3.2876]
[1729173615117,5.28,152.19,152.11,4.2861]
[1729173615118,3.287,152.17,152.14,3.2875]
[1729173616428,5.28,152.19,152.13,3.2877]
[1729173616429,3.2872,152.16,152.13,3.2877]
[1729173616725,15.76,152.18,152.1,3.33027589]
[1729173616920,5.28,152.19,152.07,5.26]
[1729173616921,15.76,152.16,152.07,5.26]
[1729173617126,5.26,152.15,152.06,21.02]
[1729173617627,3.2882,152.11,152.06,21.02]
[1729173617824,5.26,152.15,152.06,21.02]
[1729173618128,5.26,152.15,152.08,3.2887]
[1729173618521,15.76,152.14,152.05,4.176]
[1729173618722,3.2882,152.12,152.05,4.176]
[1729173618924,15.76,152.14,152.05,4.176]
[1729173619122,15.76,152.12,152.05,2.812]
[1729173619325,4.48502009,152.17,152.02,3.3366365]
[1729173619326,15.76,152.09,152.02,3.3366365]
[1729173619518,5.26,152.08,152.01,2.8025]
[1729173619915,5.26,152.08,152.04,3.2896]
[1729173620918,5.26,152.08,152.01,7.52976103]
[1729173621126,3.2892,152.07,152.03,3.2898]
[1729173621424,5.26,152.08,152.01,6.13086103]
[1729173621728,3.2891,152.07,152.01,6.13086103]
[1729173622122,3.2891,152.07,152.03,3.2898]
[1729173622328,3.2891,152.07,152.01,6.13086103]
[1729173622731,3.2891,152.07,152.03,3.2898]
[1729173623223,3.2895,152.06,152.02,3.29]
[1729173623425,3.2895,152.06,152.01,6.13086103]
[1729173623620,5.26,152.08,152.01,6.13086103]
[1729173624332,15.76,152.07,152.01,6.13086103]
[1729173624527,5.26,152.08,152.01,6.13086103]
[1729173624830,5.26,152.08,152.05,3.2893]
[1729173625331,15.76,152.11,152.02,15.76]
[1729173625533,5.28,152.11,152.04,15.76]
[1729173625833,5.28,152.11,152.08,3.2887]
[1729173626630,15.76,152.15,152.1,3.2882]
[1729173626937,5.28,152.14,152.1,3.2882]
[1729173627231,3.2879,152.13,152.1,3.2882]
[1729173627834,3.288,152.12,152.09,6.50022497]
[1729173628031,15.76,152.11,152.04,5.28]
[1729173628330,5.28,152.1,152.02,17.2154]
[1729173629036,5.28,152.1,152.04,15.76]
[1729173629529,5.28,152.1,152.06,15.76]
[1729173629723,1.3229,152.18,152.08,15.76]
[1729173629924,6.34533881,152.17,152.1,15.76]
[1729173630133,5.28,152.17,152.12,15.76]
[1729173630438,15.76,152.16,152.11,1.4106]
[1729173630922,3.2875,152.15,152.12,3.288]
[1729173631726,15.76,152.15,152.07,2.8383]
[1729173632233,3.2878,152.13,152.08,3.2887]
[1729173632429,5.28,152.12,152.07,2.8383]
[1729173633433,8.5681,152.12,152.09,3.2885]
[1729173633633,5.28,152.12,152.07,2.8383]
[1729173633824,15.76,152.15,152.07,18.5983]
[1729173634032,5.28,152.16,152.09,15.76]
[1729173634240,5.28,152.16,152.09,19.10354238]
[1729173634642,5.28,152.16,152.11,15.76]
[1729173635123,5.28,152.16,152.14,3.2873]
[1729173635328,5.28,152.16,152.13,3.28106206]
[1729173635527,5.28,152.16,152.11,15.76]
[1729173635932,5.28,152.16,152.11,3.36492202]
[1729173636134,5.28,152.16,152.1,25.27]
[1729173636335,5.28,152.16,152.14,3.2874]
[1729173636534,5.28,152.16,152.1,28.58526377]
[1729173637730,5.28,152.16,152.14,3.2874]
[1729173638839,5.28,152.16,152.15,3.2873]
[1729173639037,5.28,152.16,152.1,28.58526377]
[1729173639038,5.28,152.19,152.12,25.27]
[1729173639338,71.02,152.27,152.15,25.27]
[1729173639537,71.02,152.27,152.18,25.27]
[1729173639538,9.63040591,152.26,152.18,25.27]
[1729173639737,2.6984,152.29,152.18,25.27]
[1729173640045,9.63008706,152.28,152.24,3.2854]
[1729173640238,8.5646,152.28,152.24,3.2854]
[1729173641044,3.2848,152.27,152.24,3.2854]
[1729173641344,1.3524,152.29,152.24,3.2854]
[1729173641535,8.5447,152.28,152.22,3.24094569]
[1729173641845,8.5447,152.28,152.22,25.27]
[1729173641846,5.26,152.28,152.22,25.27]
[1729173642034,5.26,152.28,152.22,28.5571225]
[1729173642442,1.346,152.32,152.22,28.5571225]
[1729173642640,5.26,152.33,152.25,25.27]
[1729173642845,1.0659392,152.31,152.29,3.2842]
[1729173644050,1.0659392,152.31,152.25,25.27]
[1729173644240,1.0659392,152.31,152.26,3.2848]
[1729173644447,1.0659392,152.31,152.24,5.26]
[1729173644649,1.0659392,152.31,152.24,33.86115673]
[1729173644947,1.0659392,152.31,152.27,25.27]
[1729173645246,1.0659392,152.31,152.3,3.2841]
[1729173646347,26.6047,152.4,152.27,25.27]
[1729173646542,3.2829,152.36,152.32,3.2835]
[1729173646844,5.32,152.39,152.27,25.27]
[1729173647037,25.27,152.38,152.27,25.27]
[1729173647546,3.2833,152.34,152.3,3.2839]
[1729173647741,5.32,152.35,152.3,3.2839]
[1729173648143,5.32,152.35,152.27,25.27]
[1729173648449,5.32,152.35,152.29,25.27]
[1729173648652,5.32,152.35,152.27,25.27]
[1729173648949,3.2834,152.34,152.3,3.284]
[1729173649446,8.6031,152.35,152.31,3.2837]
[1729173650143,25.27,152.39,152.31,3.2837]
[1729173650144,3.2834,152.34,152.31,3.2837]
[1729173650539,5.32,152.35,152.29,3.2842]
[1729173650846,5.32,152.35,152.24,28.60115673]
[1729173651046,5.32,152.35,152.24,33.92115673]
[1729173651250,3.2838,152.32,152.28,3.2844]
[1729173651450,5.32,152.35,152.24,33.92115673]
[1729173651846,3.2836,152.33,152.24,33.92115673]
[1729173652949,3.2837,152.32,152.24,33.92115673]
[1729173653351,3.2837,152.32,152.28,3.2844]
[1729173654045,3.2837,152.32,152.29,3.2842]
[1729173654351,5.32,152.35,152.27,25.27]
[1729173654654,5.32,152.35,152.28,1.3588]
[1729173654952,3.2832,152.34,152.28,1.3588]
[1729173655153,5.32,152.35,152.28,1.3588]
[1729173655851,5.32,152.35,152.24,8.65115673]
[1729173656149,25.27,152.34,152.24,10.00995673]
[1729173656455,3.2839,152.31,152.27,3.2847]
[1729173656654,3.2839,152.31,152.24,10.00995673]
[1729173657645,3.2839,152.31,152.28,3.2845]
[1729173658357,3.2841,152.3,152.27,3.2847]
[1729173658547,30.59,152.31,152.23,2.8187]
[1729173658743,25.27,152.29,152.18,1.3827]
[1729173658951,25.27,152.26,152.19,3.35142213]
[1729173659248,30.59,152.26,152.19,3.35142213]
[1729173659550,3.2858,152.23,152.19,6.63772213]
[1729173659758,30.59,152.26,152.19,6.63772213]
[1729173659951,30.59,152.26,152.1,9.89196377]
[1729173659952,3.2869,152.18,152.14,3.2874]
[1729173660455,30.59,152.21,152.11,6.19075969]
[1729173660753,25.27,152.19,152.11,2.8366]
[1729173660945,25.27,152.19,152.09,1.3373]
[1729173661145,3.2876,152.14,152.1,3.2883]
[1729173661352,3.2876,152.14,152.09,1.3373]
[1729173661565,5.32,152.15,152.09,1.3373]
[1729173661759,5.32,152.15,152.11,3.288]
[1729173662456,25.27,152.19,152.09,1.3373]
[1729173662457,5.32,152.17,152.13,3.2876]
[1729173662654,5.32,152.18,152.09,26.6073]
[1729173663049,5.32,152.18,152.07,5.32]
[1729173663050,25.27,152.17,152.07,5.32]
[1729173663253,26.6839,152.17,152.07,5.32]
[1729173663460,3.2879,152.13,152.08,3.2887]
[1729173663663,3.2879,152.13,152.07,8.60982878]
[1729173663952,5.32,152.14,152.07,8.60982878]
[1729173664162,8.6075,152.14,152.09,3.2886]
[1729173664347,1.4139,152.17,152.07,3.28982878]
[1729173664556,1.4139,152.17,152.05,1.4158]
[1729173664557,5.32,152.14,152.05,1.4158]
[1729173664759,5.32,152.14,152.1,3.2882]
[1729173664956,5.32,152.14,152.05,1.4158]
[1729173664957,5.32,152.14,152.08,3.33192128]
[1729173665255,5.32,152.15,152.1,3.2882]
[1729173665462,5.32,152.15,152.07,3.25988862]
[1729173665652,5.32,152.15,152.08,3.2888]
[1729173665851,3.2879,152.13,152.08,3.2888]
[1729173666161,3.2879,152.13,152.09,3.2886]
[1729173666362,3.2879,152.13,152.07,3.31679113]
[1729173666363,3.2884,152.11,152.05,1.4158]
[1729173666549,25.27,152.14,152.05,1.4158]
[1729173667058,25.27,152.12,151.98,30.59]
[1729173667359,25.27,152.12,152.02,3.2899]
[1729173667360,5.32,152.11,152.02,3.2899]
[1729173667555,3.2891,152.07,152.01,3.36054733]
[1729173667752,5.32,152.07,151.98,29.3171]
[1729173668353,5.32,152.07,152.03,3.2898]
[1729173668657,5.32,152.07,152.01,3.31645516]
[1729173668658,8.6091,152.07,152.01,3.31645516]
[1729173668858,5.32,152.07,152.01,3.2902]
[1729173669261,5.32,152.07,151.98,4.0471]
[1729173670761,5.32,152.07,151.98,29.3171]
[1729173671458,3.2894,152.06,151.98,29.3171]
[1729173671853,3.2896,152.05,152.01,3.2904]
[1729173672460,8.6091,152.07,152.03,3.2899]
[1729173672660,25.27,152.12,152.0,30.59]
[1729173672864,5.32,152.11,152.0,33.86147726]
[1729173673166,3.2886,152.1,152.0,33.86147726]
[1729173673460,5.32,152.11,152.02,25.27]
[1729173673660,5.32,152.11,152.05,25.27]
[1729173674364,5.32,152.11,152.04,5.32]
[1729173675362,5.32,152.11,152.05,3.2894]
[1729173675363,3.2888,152.09,152.05,3.2894]
[1729173676163,5.32,152.11,152.05,3.2894]
[1729173676464,5.32,152.11,152.01,5.32]
[1729173676768,3.2889,152.08,152.01,5.5]
[1729173677067,3.2889,152.08,152.04,3.2896]
[1729173677367,3.2889,152.08,152.01,5.5]
[1729173677567,3.2889,152.08,152.03,3.2899]
[1729173677759,3.2889,152.08,152.01,5.5]
[1729173678269,3.2889,152.08,152.04,3.2896]
[1729173678464,3.2889,152.08,152.01,5.5]
[1729173679565,25.27,152.09,152.0,3.27147726]
[1729173679759,25.27,152.09,151.98,9.5471]
[1729173679974,3.2894,152.06,152.03,3.2899]
[1729173680268,3.2894,152.06,152.01,3.36789382]
[1729173680572,3.2894,152.06,151.98,9.5471]
[1729173680573,3.2894,152.06,152.02,3.2901]
[1729173681269,5.5,152.07,152.01,3.26775634]
[1729173681466,5.5,152.07,151.98,9.5471]
[1729173682169,3.2894,152.06,151.98,9.5471]
[1729173682671,3.2894,152.06,152.03,3.2899]
[1729173683268,5.5,152.07,151.98,9.5471]
[1729173683959,30.77,152.07,152.01,3.2902]
[1729173684165,30.77,152.07,151.98,4.0471]
[1729173684166,30.77,152.07,152.0,3.29473812]
[1729173684373,30.77,152.07,151.98,4.0471]
[1729173684574,3.2895,152.05,151.98,4.0471]
[1729173684768,30.77,152.07,151.98,4.0471]
[1729173685471,30.77,152.07,152.0,3.2906]
[1729173686467,30.77,152.07,151.96,3.2914]
[1729173686468,25.27,152.02,151.96,3.2914]
[1729173686669,5.5,152.01,151.92,113.05851242]
[1729173686874,5.5,152.01,151.93,25.27]
[1729173687072,5.5,152.01,152.0,3.2906]
[1729173687368,8.7899,152.04,151.94,5.5]
[1729173688065,5.5,152.04,151.94,5.5]
[1729173688670,25.27,152.02,151.97,3.2911]
[1729173688871,25.27,152.02,151.94,5.5]
[1729173689368,3.2904,152.01,151.98,3.2908]
[1729173691073,3.2904,152.01,151.92,113.05851242]
[1729173691074,30.77,152.0,151.92,3.32139851]
[1729173691269,25.27,151.97,151.87,5.5]
[1729173691470,25.27,151.97,151.9,1.4009]
[1729173691771,25.27,151.92,151.82,8.4048]
[1729173691976,5.5,151.91,151.82,2.9048]
[1729173692275,5.5,151.91,151.85,3.2938]
[1729173692972,25.27,151.9,151.83,3.2942]
[1729173693183,25.27,151.87,151.75,3.35232828]